bitfinex-derivatives/quotes_ETHF0:USTF0_20260308
["timestamp","ask_amount","ask_price","bid_price","bid_amount"]
[1772949109025,6.718,1950.0,1949.3,0.55894791]
[1772949109224,7.26847357,1950.0,1949.3,0.55894791]
[1772949109524,0.55047357,1949.9,1949.3,0.55894791]
[1772949112224,7.26847357,1950.0,1949.3,0.55894791]
[1772949112424,0.55047357,1949.9,1949.3,0.55894791]
[1772949115832,0.55047357,1949.9,1949.3,0.00389093]
[1772949116028,0.55047357,1949.9,1948.8,0.55505698]
[1772949117226,0.55047357,1949.9,1948.8,0.55927343]
[1772949118429,0.55047357,1949.7,1948.8,0.55927343]
[1772949118628,6.718,1949.6,1948.8,0.55927343]
[1772949118931,7.26847357,1949.6,1948.8,0.55927343]
[1772949119626,0.55047357,1949.5,1948.8,0.55927343]
[1772949121229,6.718,1949.6,1949.0,0.55505698]
[1772949121626,7.26847357,1949.6,1949.0,0.55505698]
[1772949125929,6.718,1949.6,1949.0,0.55505698]
[1772949126235,7.29618626,1949.6,1949.0,0.55505698]
[1772949130339,0.57818626,1949.6,1949.0,0.55505698]
[1772949130635,6.718,1949.6,1949.0,0.55505698]
[1772949130836,0.57818626,1949.7,1949.0,0.55505698]
[1772949131941,6.718,1949.8,1949.0,0.55505698]
[1772949132142,6.92783498,1949.8,1949.0,0.55505698]
[1772949135239,0.20983498,1949.8,1949.0,0.55505698]
[1772949135444,6.92783498,1949.8,1949.0,0.55505698]
[1772949140347,6.92783498,1949.8,1948.9,15.43500624]
[1772949140348,0.01027581,1949.9,1949.3,0.59828676]
[1772949141248,0.01027581,1949.9,1949.1,0.59809343]
[1772949143952,0.01027581,1949.9,1948.9,0.59829482]
[1772949144448,0.01027581,1949.9,1949.0,2.65435587]
[1772949145343,2.04633315,1949.9,1949.0,0.60802272]
[1772949145543,2.04633315,1949.9,1948.8,2.65857232]
[1772949145752,2.04633315,1949.9,1948.9,0.60802272]
[1772949147253,2.04633315,1949.7,1948.8,0.00421645]
[1772949147554,6.718,1949.6,1948.8,0.61400395]
[1772949149854,6.718,1949.6,1948.8,0.00421645]
[1772949150450,0.01157593,1949.5,1948.8,0.00421645]
[1772949150651,0.01157593,1949.5,1948.8,0.60185314]
[1772949154962,0.01157593,1949.5,1948.8,0.00421645]
[1772949157067,0.01157593,1949.5,1948.8,0.60682177]
[1772949157667,0.01672075,1949.3,1948.8,0.60682177]
[1772949161064,0.03093647,1949.2,1948.6,0.60260532]
[1772949161262,0.03093647,1949.0,1948.2,0.60260532]
[1772949161665,0.03093647,1949.0,1948.4,0.60260532]
[1772949162266,0.03613079,1949.0,1948.4,0.60871765]
[1772949162472,0.09001166,1948.6,1948.0,0.60260532]
[1772949162869,0.09001166,1948.5,1948.0,0.60260532]
[1772949163066,0.09001166,1948.5,1948.0,0.0962145]
[1772949163562,0.09001166,1948.5,1948.0,0.10103814]
[1772949164466,7.31519769,1948.9,1948.4,0.60260532]
[1772949165373,6.719,1948.8,1948.4,0.60260532]
[1772949165670,7.31619769,1948.8,1948.4,0.60260532]
[1772949169276,0.59719769,1948.8,1948.4,0.60260532]
[1772949169478,7.31619769,1948.8,1948.4,0.60260532]
[1772949169971,6.719,1948.9,1948.4,0.60260532]
[1772949170171,7.31619769,1948.9,1948.4,0.60260532]
[1772949170675,0.59719769,1948.8,1948.4,0.60260532]
[1772949178786,0.00519432,1949.0,1948.6,0.60260532]
[1772949178986,6.72419432,1949.0,1948.6,0.60260532]
[1772949182290,7.30732245,1949.0,1948.6,0.60260532]
[1772949183589,0.58832245,1949.0,1948.6,0.60260532]
[1772949183788,6.718,1948.9,1948.6,0.60260532]
[1772949184292,0.57203138,1949.2,1948.8,0.55913405]
[1772949184490,7.29003138,1949.1,1948.8,0.55913405]
[1772949184690,0.57203138,1949.1,1948.8,0.55913405]
[1772949184890,6.718,1949.0,1948.8,0.55913405]
[1772949185491,7.29585097,1949.0,1948.7,0.55913405]
[1772949185691,0.57203138,1948.9,1948.4,0.55913405]
[1772949190794,0.57203138,1948.9,1948.3,0.55913405]
[1772949202800,0.57203138,1948.9,1948.2,0.55913405]
[1772949211412,0.57203138,1948.7,1948.1,0.55913405]
[1772949213419,0.57203138,1948.7,1948.0,0.56318212]
[1772949213913,0.58333763,1948.5,1948.0,0.56318212]
[1772949214218,0.58333763,1948.4,1948.0,0.56318212]
[1772949216317,0.58333763,1948.4,1948.0,0.00482364]
[1772949220022,0.58333763,1948.4,1948.0,1e-08]
[1772949220615,0.58333763,1948.4,1947.8,0.55835848]
[1772949221723,0.58333763,1948.4,1947.8,0.56322919]
[1772949224128,0.58333763,1948.4,1947.3,0.55835848]
[1772949224327,7.30233763,1948.3,1947.3,0.55835848]
[1772949225028,7.30233763,1948.3,1947.3,0.56255834]
[1772949225029,0.58333763,1948.2,1947.3,0.56255834]
[1772949228025,0.58333763,1948.4,1947.3,0.56255834]
[1772949228331,0.58333763,1948.4,1947.5,0.55835848]
[1772949232035,0.58333763,1948.9,1947.8,0.55835848]
[1772949232235,0.58333763,1948.6,1947.8,0.55835848]
[1772949240439,0.58333763,1948.5,1947.8,0.55835848]
[1772949258155,0.58679624,1948.6,1947.8,0.55835848]
[1772949265658,7.30579624,1948.6,1947.8,0.55835848]
[1772949265857,0.58679624,1948.5,1947.8,0.55835848]
[1772949266462,0.58679624,1948.5,1948.0,0.54795497]
[1772949276171,0.55035127,1948.4,1948.0,0.54795497]
[1772949276773,0.25658,1948.8,1948.0,0.54795497]
[1772949276774,0.55035127,1948.7,1948.0,0.54795497]
[1772949276973,7.26935127,1948.5,1948.0,0.54795497]
[1772949278878,0.55035127,1948.4,1948.0,0.54795497]
[1772949279071,7.26935127,1948.5,1948.0,0.54795497]
[1772949280974,0.55035127,1948.9,1948.4,0.55518755]
[1772949281276,0.00581959,1949.0,1948.6,2.60388566]
[1772949282372,0.00581959,1949.0,1948.7,0.60345122]
[1772949282571,0.00581959,1949.0,1948.7,0.60997687]
[1772949283567,5.04766622,1949.0,1948.7,0.60997687]
[1772949284577,5.051683,1949.0,1948.7,0.60997687]
[1772949285681,6.719,1949.2,1948.9,0.60462468]
[1772949286573,7.27474468,1949.2,1948.9,0.60462468]
[1772949286777,0.55574468,1949.2,1948.9,0.60462468]
[1772949288377,0.00539341,1949.2,1948.9,0.60462468]
[1772949289677,0.96312027,1949.3,1949.1,0.58203337]
[1772949289883,6.719,1949.5,1949.1,0.58203337]
[1772949290176,0.55035127,1949.6,1949.1,0.58203337]
[1772949290372,6.719,1949.5,1949.1,0.58203337]
[1772949290778,6.72433877,1949.5,1949.1,0.58203337]
[1772949291179,0.00533877,1949.5,1949.1,0.58203337]
[1772949291380,6.72433877,1949.5,1949.1,0.58203337]
[1772949292586,0.55035127,1949.7,1949.1,0.58203337]
[1772949292880,0.55035127,1949.7,1948.8,2.63133034]
[1772949293184,0.55035127,1949.3,1948.7,0.00652565]
[1772949293381,0.55035127,1949.1,1948.7,0.58915788]
[1772949293583,0.55035127,1949.2,1948.9,2.63145391]
[1772949293989,7.26935127,1949.3,1949.0,0.5827558]
[1772949294785,6.719,1949.5,1949.2,0.59135646]
[1772949294984,7.26935127,1949.5,1949.2,0.59135646]
[1772949295185,0.55035127,1949.7,1949.2,0.59135646]
[1772949295380,7.26935127,1949.7,1949.2,0.59135646]
[1772949295581,0.55035127,1949.7,1949.2,0.59135646]
[1772949295780,7.26935127,1949.7,1949.2,0.59135646]
[1772949295981,7.27422241,1949.7,1949.2,0.59135646]
[1772949296390,0.55035127,1950.1,1949.6,2.64851631]
[1772949296597,0.55035127,1950.1,1949.7,0.5998182]
[1772949297392,0.55577751,1950.1,1949.7,0.5998182]
[1772949297588,0.55577751,1950.1,1949.6,0.5999036]
[1772949299087,0.55577751,1950.1,1949.4,0.59461038]
[1772949300093,0.55035127,1950.0,1949.5,0.59471435]
[1772949301291,6.72342624,1950.1,1949.7,0.59446698]
[1772949301997,7.91104022,1950.1,1949.7,0.59446698]
[1772949302496,1.25635598,1949.9,1949.0,1.25944132]
[1772949302795,1.25635598,1949.7,1949.0,1.25944132]
[1772949302993,1.25635598,1949.5,1949.0,1.25944132]
[1772949305402,1.25635598,1949.3,1948.8,1.25944132]
[1772949306398,1.25635598,1949.1,1948.7,1.26596697]
[1772949316606,7.89987511,1949.6,1949.0,1.25944132]
[1772949316803,1.17987511,1949.5,1949.0,1.25944132]
[1772949320202,7.89987511,1949.5,1949.0,1.25944132]
[1772949321503,5.69759692,1950.3,1949.2,1.25944132]
[1772949321704,1.15491785,1950.0,1949.4,1.25944132]
[1772949322798,6.72,1949.9,1949.4,1.25944132]
[1772949322998,7.86813847,1949.9,1949.4,1.25944132]
[1772949328010,1.11218369,1949.8,1949.4,1.25944132]
[1772949329206,6.72,1949.9,1949.4,1.25944132]
[1772949329411,7.82144448,1949.9,1949.4,1.25944132]
[1772949330012,1.09487156,1949.8,1949.4,1.25944132]
[1772949332006,1.09487156,1949.8,1949.1,1.25944132]
[1772949333911,7.79078054,1949.9,1949.1,1.25944132]
[1772949335113,1.06421919,1949.8,1949.1,1.25944132]
[1772949336414,1.06421919,1949.8,1948.8,1.16722402]
[1772949340520,1.03198708,1949.6,1948.8,1.16722402]
[1772949344520,0.25646,1949.7,1948.8,1.16722402]
[1772949344826,0.00542624,1950.1,1948.7,0.00652565]
[1772949344827,1.00986643,1950.1,1949.1,1.16722402]
[1772949351128,0.00542624,1950.1,1949.4,1.16722402]
[1772949351632,0.94187755,1950.1,1949.4,1.16722402]
[1772949352127,0.00542624,1950.1,1949.4,1.16722402]
[1772949352323,0.94187755,1950.4,1949.5,1.16722402]
[1772949353826,0.92974206,1950.5,1949.5,1.16722402]
[1772949355030,0.92974206,1950.5,1949.6,1.16722402]
[1772949370136,6.718,1950.6,1949.6,1.16722402]
[1772949370137,0.77414738,1950.3,1949.6,1.16722402]
[1772949377543,0.7682286,1950.1,1949.6,1.16722402]
[1772949377748,0.7682286,1950.1,1949.2,1.04830611]
[1772949379952,0.75615414,1949.9,1949.2,1.04830611]
[1772949386350,0.61626348,1949.7,1949.2,1.04830611]
[1772949393457,0.61626348,1949.7,1948.8,0.92132705]
[1772949393654,0.54410938,1949.5,1948.8,0.92132705]
[1772949404173,0.25644,1949.8,1949.0,0.92132705]
[1772949404367,0.73474621,1949.8,1949.0,0.92132705]
[1772949404766,0.47277661,1949.7,1949.0,0.92132705]
[1772949405969,0.25647,1949.6,1949.0,0.92132705]
[1772949406181,0.46747448,1949.1,1948.7,0.00652565]
[1772949406367,0.46747448,1949.1,1948.6,0.92132705]
[1772949407370,0.47345981,1949.1,1948.6,0.92632443]
[1772949410472,0.88701403,1948.6,1948.2,0.92132705]
[1772949410677,0.88701403,1948.6,1947.7,0.92132705]
[1772949410876,0.88701403,1948.6,1947.9,0.92132705]
[1772949411178,0.25655,1949.0,1948.3,0.92132705]
[1772949411179,0.89222368,1948.8,1948.3,0.92132705]
[1772949411572,0.89222368,1948.8,1948.3,0.92746589]
[1772949413380,0.89222368,1948.8,1948.3,0.00613884]
[1772949414266,0.89222368,1948.8,1948.2,0.92132705]
[1772949414472,0.89222368,1948.6,1948.0,0.92132705]
[1772949415174,0.89222368,1948.6,1948.0,0.9261166]
[1772949421577,0.89222368,1948.6,1948.0,0.00478955]
[1772949421773,0.89222368,1948.6,1947.4,48.029]
[1772949421774,0.89222368,1948.2,1947.4,0.88722303]
[1772949421979,0.9382471,1947.8,1947.4,0.88722303]
[1772949422178,0.9382471,1947.8,1947.4,0.14406161]
[1772949422786,0.9382471,1947.8,1947.0,0.8521812]
[1772949422981,0.9382471,1947.8,1947.0,0.85814728]
[1772949423685,0.87394201,1947.6,1947.0,0.85814728]
[1772949423884,0.88015064,1947.6,1947.0,0.85814728]
[1772949425684,2.0463305,1947.3,1946.7,0.8521812]
[1772949425888,0.87394201,1947.4,1946.7,0.8521812]
[1772949426493,0.88015064,1947.6,1947.1,0.8521812]
[1772949426690,0.00620863,1947.6,1947.3,0.8521812]
[1772949430796,0.25669,1947.9,1947.3,0.8521812]
[1772949431295,1.13063201,1947.9,1947.3,0.8521812]
[1772949431696,1.13647754,1947.9,1947.3,0.8521812]
[1772949432696,0.87394201,1947.8,1947.3,0.8521812]
[1772949433391,0.87394201,1947.8,1947.1,0.85731158]
[1772949436901,0.87394201,1947.6,1947.1,0.00513038]
[1772949437802,0.87394201,1947.6,1946.8,0.8521812]
[1772949438403,7.59594201,1947.6,1946.8,0.8521812]
[1772949438702,0.87394201,1947.5,1946.8,0.8568362]
[1772949443102,0.87394201,1947.6,1946.8,0.8568362]
[1772949443307,0.87394201,1947.8,1947.2,0.8521812]
[1772949443703,0.00584553,1947.9,1947.5,0.8521812]
[1772949446805,0.87978754,1947.9,1947.5,0.8521812]
[1772949447301,0.87978754,1947.9,1947.3,0.8521812]
[1772949447500,0.87394201,1947.8,1947.3,0.8521812]
[1772949448809,0.00584553,1947.9,1947.5,0.8521812]
[1772949450410,0.87394201,1948.4,1947.7,0.8521812]
[1772949451412,0.87950464,1948.4,1947.7,0.8521812]
[1772949456009,0.87637769,1948.2,1947.7,0.8521812]
[1772949456409,0.87637769,1948.2,1947.2,0.8297004]
[1772949458413,0.25664,1948.3,1947.2,0.8297004]
[1772949458808,1.13301769,1948.3,1947.2,0.8297004]
[1772949461814,0.87637769,1948.3,1947.2,0.8297004]
[1772949464414,0.88194032,1948.4,1947.4,0.8297004]
[1772949464621,0.00556263,1948.4,1947.4,0.8297004]
[1772949466219,0.00556263,1948.4,1947.6,0.8297004]
[1772949480929,0.00556263,1948.4,1947.6,14.21993805]
[1772949481230,0.00556263,1948.4,1947.7,0.8297004]
[1772949481730,6.9765,1949.4,1947.9,0.8220439]
[1772949482031,0.80416251,1949.3,1948.1,0.8220439]
[1772949482230,0.80416251,1949.3,1948.2,0.8220439]
[1772949482829,0.80877833,1949.3,1948.2,0.82757211]
[1772949494349,0.76970004,1948.9,1948.2,0.00552821]
[1772949494743,0.76970004,1948.9,1948.2,0.77382783]
[1772949495241,0.76970004,1949.2,1948.2,0.77382783]
[1772949512564,0.69488223,1949.1,1948.3,0.73343698]
[1772949516863,0.69488223,1949.0,1948.3,0.73343698]
[1772949517170,0.69488223,1948.9,1948.2,8.07596519]
[1772949517466,0.69488223,1948.7,1948.2,0.00552821]
[1772949517666,0.69488223,1948.7,1948.2,0.73896519]
[1772949517964,0.69488223,1949.0,1948.2,0.73896519]
[1772949520169,0.69488223,1949.0,1948.4,0.73343698]
[1772949525481,2.04788538,1948.6,1948.2,0.00552821]
[1772949525670,0.69488223,1948.5,1948.2,0.00552821]
[1772949525875,0.69488223,1948.5,1948.0,0.73343698]
[1772949526069,0.69488223,1948.5,1947.7,20.74723765]
[1772949526070,0.69488223,1948.5,1947.9,0.73343698]
[1772949526482,0.69488223,1948.5,1947.7,0.73343698]
[1772949526875,0.69488223,1948.5,1947.7,0.73887152]
[1772949528781,0.69488223,1948.5,1948.0,0.73343698]
[1772949530476,0.69488223,1948.5,1947.8,0.73343698]
[1772949531580,0.69488223,1948.5,1947.7,0.73887152]
[1772949533485,2.74276761,1948.4,1947.7,0.00543454]
[1772949533675,0.25663,1948.5,1947.1,13.39023765]
[1772949533676,0.69488223,1947.9,1947.1,13.39023765]
[1772949533879,0.69488223,1947.9,1947.2,0.73343698]
[1772949534678,0.00517675,1947.9,1947.3,0.73343698]
[1772949534874,0.00517675,1947.9,1947.5,0.73343698]
[1772949536580,0.70005898,1947.9,1947.5,0.73343698]
[1772949538288,0.70005898,1947.9,1947.3,0.73343698]
[1772949540890,0.70005898,1947.9,1947.2,0.73784205]
[1772949541492,0.70005898,1947.9,1947.2,0.00440507]
[1772949543691,0.70005898,1947.9,1947.2,0.66321217]
[1772949549093,0.70005898,1947.9,1947.3,0.6588071]
[1772949551093,0.70005898,1947.9,1947.2,2.05229045]
[1772949551299,0.70005898,1947.9,1947.2,0.00440507]
[1772949551594,0.70005898,1947.9,1947.2,0.66321217]
[1772949554798,0.66370335,1948.0,1947.6,0.6588071]
[1772949555004,0.92038335,1948.1,1947.6,0.6588071]
[1772949555599,0.66370335,1948.0,1947.6,0.6588071]
[1772949557806,0.66370335,1948.0,1947.3,0.6588071]
[1772949558304,0.66370335,1947.9,1947.2,0.00440507]
[1772949558503,0.66370335,1947.9,1947.2,0.66321217]
[1772949561900,0.66370335,1947.9,1947.5,0.6588071]
[1772949563203,0.66370335,1947.9,1947.2,2.05229045]
[1772949563405,0.66370335,1947.9,1947.2,2.71109755]
[1772949563609,0.66370335,1947.9,1947.3,0.6588071]
[1772949565714,0.66370335,1947.9,1947.5,0.6588071]
[1772949568419,6.722,1948.3,1947.2,0.00440507]
[1772949568420,0.66370335,1948.3,1947.8,0.6588071]
[1772949569422,0.66955457,1948.3,1947.8,0.6588071]
[1772949570428,0.66370335,1948.5,1948.2,0.6588071]
[1772949571527,0.66936017,1948.5,1948.2,0.6588071]
[1772949571728,0.66936017,1948.5,1948.0,0.6588071]
[1772949574929,0.61356921,1948.7,1948.0,0.6588071]
[1772949575725,0.61751354,1948.7,1948.0,0.6588071]
[1772949601746,0.28989077,1949.2,1948.3,0.55903712]
[1772949602542,0.28940043,1948.8,1948.0,0.56593225]
[1772949610358,0.28547449,1948.6,1947.7,0.56593225]
[1772949615564,0.21654027,1948.4,1947.7,0.56593225]
[1772949617660,2.04861909,1948.7,1947.7,0.56593225]
[1772949617661,0.21381312,1948.2,1947.7,0.56593225]
[1772949624175,0.25664,1948.3,1947.7,0.56593225]
[1772949624365,0.1973654,1948.6,1947.7,0.56593225]
[1772949624766,0.18848208,1948.8,1947.7,0.56593225]
[1772949624970,6.97957,1948.9,1948.0,0.56593225]
[1772949625171,7.16805208,1948.9,1948.0,0.56593225]
[1772949625476,0.18848208,1948.8,1948.0,0.56593225]
[1772949626472,0.18848208,1949.1,1948.0,0.56593225]
[1772949634483,0.18848208,1949.1,1948.2,0.58574682]
[1772949635883,0.18848208,1949.1,1948.4,0.58574682]
[1772949636682,0.21764981,1949.2,1948.6,0.58574682]
[1772949636984,0.21764981,1949.2,1948.6,0.59010016]
[1772949642684,7.20005289,1949.4,1948.8,0.58574682]
[1772949643086,0.22155289,1949.1,1948.7,0.58574682]
[1772949648092,0.22155289,1949.1,1948.6,0.59010016]
[1772949654600,0.25652,1949.2,1948.6,0.59010016]
[1772949654990,0.25652,1949.2,1948.8,0.58574682]
[1772949656092,0.22734006,1949.4,1948.8,0.58574682]
[1772949656698,6.94914437,1949.5,1948.8,0.58574682]
[1772949657197,6.722,1949.4,1948.8,0.58574682]
[1772949658198,6.94914437,1949.5,1948.8,0.58574682]
[1772949659099,6.722,1949.4,1948.8,0.58574682]
[1772949660502,6.722,1949.6,1949.0,0.58574682]
[1772949661099,0.22574572,1949.5,1949.0,0.58574682]
[1772949661306,0.22574572,1949.5,1948.7,0.58574682]
[1772949661505,0.22574572,1949.5,1948.6,0.00435334]
[1772949661506,0.22574572,1949.1,1948.6,0.59010016]
[1772949661802,0.22574572,1949.0,1948.6,0.59010016]
[1772949666509,6.9485069,1949.1,1948.6,0.59010016]
[1772949666712,6.722,1949.1,1948.6,0.59010016]
[1772949667211,0.48308997,1949.2,1948.6,0.59010016]
[1772949667411,6.722,1949.1,1948.6,0.59010016]
[1772949671510,0.48308997,1949.2,1948.6,0.59010016]
[1772949671716,6.722,1949.1,1948.6,0.59010016]
[1772949672812,0.25652,1949.2,1948.6,2.63820176]
[1772949673016,6.97852,1949.2,1948.7,0.56859768]
[1772949673217,0.25652,1949.2,1948.7,0.56859768]
[1772949675814,6.9501727,1949.5,1948.7,0.56859768]
[1772949676919,0.23357229,1949.4,1948.7,0.56859768]
[1772949689733,0.24202273,1949.3,1948.7,0.56859768]
[1772949697639,6.722,1949.5,1948.7,0.56859768]
[1772949697841,0.23565512,1949.4,1948.7,0.56859768]
[1772949702939,0.21738473,1949.5,1948.7,0.56859768]
[1772949716848,0.20116063,1949.6,1948.7,0.56859768]
[1772949719551,0.25646,1949.7,1948.7,0.56859768]
[1772949719846,0.45766682,1949.7,1948.9,0.56859489]
[1772949720550,0.25646,1949.7,1948.9,0.56859489]
[1772949722445,0.20130522,1949.9,1948.9,0.56859489]
[1772949725958,0.21827531,1950.1,1948.9,0.56859489]
[1772949726255,0.21827531,1950.0,1948.9,0.56859489]
[1772949727155,0.21830323,1950.1,1949.2,0.59580159]
[1772949730552,0.2564,1950.2,1949.2,0.59580159]
[1772949730956,0.47742669,1950.2,1949.2,0.59580159]
[1772949733363,0.22218666,1950.1,1949.2,0.59580159]
[1772949740365,0.2564,1950.2,1949.2,0.59580159]
[1772949741661,0.2564,1950.2,1949.4,0.59580159]
[1772949742465,0.47235167,1950.2,1949.4,0.59580159]
[1772949744965,0.2564,1950.2,1949.4,0.59580159]
[1772949745568,0.21849564,1950.3,1949.5,0.59580159]
[1772949745965,0.21849564,1950.6,1949.5,0.59580159]
[1772949754583,0.21849564,1950.6,1949.9,0.57913743]
[1772949765195,0.21849564,1950.6,1950.1,0.57913743]
[1772949765395,0.21849564,1950.6,1950.1,0.58562062]
[1772949766691,0.21849564,1950.6,1950.1,0.00648319]
[1772949766898,0.20298378,1950.2,1949.7,0.57913743]
[1772949767798,0.20853115,1950.2,1949.7,0.58359997]
[1772949772297,0.12693997,1950.0,1949.7,0.00446254]
[1772949772598,0.12693997,1950.0,1949.6,0.57913743]
[1772949773499,0.12693997,1950.0,1949.6,0.58306835]
[1772949776801,0.36800508,1950.1,1949.6,0.58306835]
[1772949778299,0.35275903,1950.6,1949.9,0.57913743]
[1772949778602,0.60909903,1950.6,1949.9,0.57913743]
[1772949779394,0.61516967,1950.6,1949.9,0.57913743]
[1772949781503,0.26241064,1950.6,1949.9,0.57913743]
[1772949784313,0.00607064,1950.6,1949.9,0.57913743]
[1772949788309,0.00607064,1950.6,1950.1,0.54353602]
[1772949790411,0.00607064,1950.6,1950.3,0.54353602]
[1772949790614,0.35468908,1950.8,1950.3,0.54353602]
[1772949792315,0.35473721,1951.0,1950.3,0.54353602]
[1772949792615,0.35757678,1950.9,1950.3,0.54353602]
[1772949798318,7.07457678,1950.9,1950.3,0.54353602]
[1772949800020,0.35757678,1950.9,1950.3,0.54353602]
[1772949800224,7.07457678,1950.9,1950.3,0.54353602]
[1772949801013,0.35173494,1951.0,1950.3,0.54353602]
[1772949801220,6.717,1950.9,1950.3,0.54353602]
[1772949802118,7.06873494,1950.9,1950.3,0.54353602]
[1772949802720,0.35173494,1950.9,1950.3,0.54353602]
[1772949802922,7.06910077,1951.0,1950.3,0.54353602]
[1772949804223,0.35210077,1950.9,1950.3,0.54353602]
[1772949808516,0.35393231,1950.8,1950.1,0.54353602]
[1772949813223,0.36149248,1951.0,1950.1,0.54353602]
[1772949813428,0.36149248,1951.0,1950.3,0.57856335]
[1772949831643,6.33760394,1951.4,1949.6,48.02993092]
[1772949831644,0.33986142,1951.4,1950.5,0.57856335]
[1772949831837,7.05686142,1951.4,1950.5,0.57856335]
[1772949832041,6.717,1951.3,1950.5,0.57856335]
[1772949832442,0.33986142,1951.4,1950.5,0.57856335]
[1772949832641,0.34123105,1951.3,1950.5,0.57856335]
[1772949835652,4.29359258,1952.2,1951.1,0.57856335]
[1772949835948,0.59705481,1952.0,1951.4,0.57856335]
[1772949836149,0.59705481,1951.9,1951.4,0.57856335]
[1772949836547,0.59705481,1951.9,1951.2,0.57856335]
[1772949837248,0.59705481,1951.9,1951.1,0.00460613]
[1772949837249,0.59705481,1951.9,1951.1,0.58316948]
[1772949837550,0.59705481,1951.9,1951.1,0.00460613]
[1772949838950,0.59762847,1951.7,1951.1,0.00460613]
[1772949840144,0.59762847,1951.7,1951.1,0.58316948]
[1772949841452,0.59762847,1951.7,1951.1,0.00460613]
[1772949841644,0.59762847,1951.7,1950.9,0.57856335]
[1772949842552,0.60191122,1951.7,1950.9,0.58511108]
[1772949843954,6.715,1951.6,1950.9,0.58511108]
[1772949844153,7.26786781,1951.6,1950.9,0.58511108]
[1772949844353,0.55286781,1951.5,1950.9,0.58511108]
[1772949844548,0.00428275,1951.7,1950.9,0.58511108]
[1772949849359,0.55715056,1951.7,1950.9,0.58511108]
[1772949864866,0.55286781,1951.5,1950.9,0.58511108]
[1772949865070,0.55286781,1951.5,1950.9,0.00654773]
[1772949866372,0.00428275,1951.7,1950.8,0.56814086]
[1772949866373,0.55286781,1951.3,1950.8,0.56814086]
[1772949867272,0.55286781,1951.3,1950.8,0.57326353]
[1772949868975,7.52309781,1951.4,1950.8,0.57326353]
[1772949869375,0.55286781,1951.3,1950.8,0.57326353]
[1772949875980,6.714,1951.3,1950.8,0.57326353]
[1772949878384,7.26992148,1951.3,1950.8,0.57326353]
[1772949878681,7.27092148,1951.3,1950.8,0.57326353]
[1772949878983,0.55592148,1951.2,1950.8,0.57326353]
[1772949879782,0.55592148,1951.3,1950.8,0.57326353]
[1772949879984,6.715,1951.3,1950.8,0.57326353]
[1772949880685,7.27092148,1951.3,1950.8,0.57326353]
[1772949880885,0.55592148,1951.3,1950.8,0.57326353]
[1772949881081,7.27092148,1951.3,1950.8,0.57326353]
[1772949881987,6.715,1951.3,1950.8,0.57326353]
[1772949882680,0.55592148,1951.4,1950.8,0.57326353]
[1772949882882,7.27092148,1951.4,1950.8,0.57326353]
[1772949883488,0.55592148,1951.5,1950.8,0.57326353]
[1772949883688,6.715,1951.4,1950.8,0.57326353]
[1772949884185,0.55592148,1951.3,1950.8,0.00512267]
[1772949884390,0.55592148,1951.3,1950.8,0.55278625]
[1772949887994,0.55592148,1951.2,1950.6,0.54766358]
[1772949888892,0.55592148,1951.2,1950.6,0.55266242]
[1772949890898,0.55592148,1951.2,1950.6,0.00499884]
[1772949893798,0.55592148,1951.2,1950.6,0.55266242]
[1772949898103,0.55592148,1951.2,1950.6,0.00499884]
[1772949901109,0.55592148,1951.2,1950.5,0.54766358]
[1772949902199,0.55592148,1951.2,1950.5,0.55245849]
[1772949902905,0.57042385,1951.0,1950.5,0.55245849]
[1772949904500,0.57042385,1951.0,1950.5,0.00479491]
[1772949905207,0.57042385,1951.0,1950.5,0.59098726]
[1772949914313,0.57042385,1951.0,1950.5,0.33785824]
[1772949914613,0.57042385,1951.0,1950.4,0.58619235]
[1772949914809,0.57042385,1951.0,1950.3,0.58619235]
[1772949915411,0.57042385,1951.0,1950.3,0.59258911]
[1772949920817,0.5716478,1950.8,1950.3,0.00639676]
[1772949921013,2.29908625,1950.9,1950.3,0.00639676]
[1772949921014,0.5716478,1950.6,1950.3,0.00639676]
[1772949921712,6.716,1950.7,1950.3,0.59258911]
[1772949921913,6.716,1950.8,1950.5,0.58619235]
[1772949924820,7.2876478,1950.8,1950.5,0.58619235]
[1772949925924,0.5716478,1950.9,1950.5,0.58619235]
[1772949926123,6.716,1950.8,1950.5,0.58619235]
[1772949936834,0.56618944,1950.9,1950.5,0.58619235]
[1772949937233,6.716,1950.8,1950.5,0.58619235]
[1772949937930,0.56618944,1950.7,1950.3,0.55242119]
[1772949941135,0.56618944,1950.7,1950.3,0.00639676]
[1772949942527,0.56618944,1950.7,1950.2,0.54602443]
[1772949943433,0.56618944,1950.7,1950.2,0.55026945]
[1772949945737,0.56618944,1950.7,1950.2,0.00424502]
[1772949947536,0.56618944,1950.5,1950.2,0.00424502]
[1772949947834,0.56618944,1950.4,1949.8,0.54602443]
[1772949948736,0.56618944,1950.4,1949.8,0.55199729]
[1772949950143,6.716,1950.5,1949.8,0.55199729]
[1772949950740,7.28218944,1950.5,1949.8,0.55199729]
[1772949952939,0.56618944,1950.4,1949.8,0.55199729]
[1772949953140,0.56618944,1950.4,1949.8,0.00597286]
[1772949953745,0.56618944,1950.4,1949.8,0.55199729]
[1772949960152,0.56618944,1950.4,1949.8,0.00597286]
[1772949961450,0.56618944,1950.4,1949.6,0.54602443]
[1772949962453,7.31725748,1950.3,1949.6,0.55242378]
[1772949962652,0.60025748,1950.2,1949.6,0.55242378]
[1772949963247,6.717,1950.2,1949.6,0.55242378]
[1772949969360,7.31725748,1950.2,1949.6,0.55242378]
[1772949969660,0.60025748,1950.1,1949.6,0.55242378]
[1772949971755,6.717,1950.2,1949.6,0.55242378]
[1772949971953,7.31725748,1950.2,1949.6,0.55242378]
[1772949974261,0.60025748,1950.2,1949.6,0.55242378]
[1772949974462,7.31825748,1950.2,1949.6,0.55242378]
[1772949975158,0.60025748,1950.1,1949.6,0.55242378]
[1772949977158,0.60025748,1950.8,1949.6,0.55242378]
[1772949977365,0.60025748,1950.7,1949.9,0.59308962]
[1772949978255,0.60496309,1950.7,1949.9,0.59308962]
[1772949993577,0.54847511,1950.5,1949.6,13.396637]
[1772949993877,0.54847511,1950.1,1949.6,0.00639935]
[1772949994082,0.54847511,1950.1,1949.3,0.54455715]
[1772949994678,0.54847511,1950.1,1949.2,1.37586405]
[1772949995080,0.54847511,1950.1,1949.2,0.54973152]
[1772949998077,0.54847511,1950.1,1949.2,0.00517437]
[1772949998483,0.54847511,1949.8,1949.2,0.00517437]
[1772950001080,0.54847511,1949.8,1949.0,0.54455715]
[1772950001280,0.54847511,1949.8,1948.9,0.54455715]
[1772950001783,0.54847511,1949.6,1948.9,0.54455715]
[1772950002080,0.54847511,1949.4,1948.9,0.00629799]
[1772950002687,2.04666607,1949.5,1948.3,0.54455715]
[1772950002688,0.54847511,1949.0,1948.3,0.54455715]
[1772950003474,0.54847511,1949.0,1948.3,0.54962732]
[1772950003679,0.55357986,1949.0,1948.3,0.54962732]
[1772950009987,0.54847511,1948.8,1948.3,0.00507017]
[1772950011288,0.54847511,1948.8,1948.3,0.54962732]
[1772950012789,0.54847511,1948.8,1948.3,0.00507017]